fUST/lending_fUST_20250702
["ID","MTS","AMOUNT","RATE_DAILY","PERIOD"]
[369053584,1751446248585,-460.0,0.00016986,2]
[369053587,1751446248594,-460.0,0.00016986,2]
[369053588,1751446248604,-460.0,0.00016986,2]
[369053591,1751446248613,-460.0,0.00016986,2]
[369053592,1751446248623,-1050.38,0.00016986,2]
[369053595,1751446248633,-460.0,0.00016986,2]
[369053597,1751446248643,-460.0,0.00016986,2]
[369053598,1751446248653,-460.0,0.00016986,2]
[369053601,1751446248663,-460.0,0.00016986,2]
[369053602,1751446248672,-460.0,0.00016986,2]
[369053604,1751446248683,-460.0,0.00016986,2]
[369053606,1751446248692,-460.0,0.00016986,2]
[369053608,1751446248702,-460.0,0.00016986,2]
[369053611,1751446248712,-500.0,0.00016986,2]
[369053613,1751446248722,-460.0,0.00016986,2]
[369053615,1751446248732,-1020.41,0.00016986,2]
[369053616,1751446248742,-460.0,0.00016986,2]
[369053618,1751446248753,-460.0,0.00016986,2]
[369053620,1751446248764,-469.64481405,0.00016986,2]
[369053623,1751446248774,-460.0,0.00016986,2]
[369053625,1751446248784,-936.85,0.00016986,2]
[369053627,1751446248795,-460.0,0.00016986,2]
[369053629,1751446248804,-460.0,0.00016986,2]
[369053630,1751446248814,-492.08,0.00016986,2]
[369053632,1751446248823,-460.0,0.00016986,2]
[369053634,1751446248833,-460.0,0.00016986,2]
[369053636,1751446248843,-460.0,0.00016986,2]
[369053638,1751446248853,-460.0,0.00016986,2]
[369053640,1751446248863,-460.0,0.00016986,2]
[369053642,1751446248872,-460.0,0.00016986,2]
[369053644,1751446248881,-713.77,0.00016986,2]
[369053646,1751446248892,-311.91750978,0.00016986,2]
[369053648,1751446248902,-1984.15,0.00016986,2]
[369053650,1751446248911,-552.23106488,0.00016986,2]
[369053652,1751446248921,-639.15,0.00016986,2]
[369053654,1751446248931,-460.0,0.00016986,2]
[369053656,1751446248941,-510.56,0.00016986,2]
[369053658,1751446248952,-1341.06,0.00016986,2]
[369053660,1751446248962,-1965.29,0.00016986,2]
[369053662,1751446248971,-1463.66,0.00016986,2]
[369053664,1751446248981,-460.0,0.00016986,2]
[369053666,1751446248990,-460.0,0.00016986,2]
[369053668,1751446248999,-588.79,0.00016986,2]
[369053670,1751446249008,-460.0,0.00016986,2]
[369053672,1751446249018,-705.4,0.00016986,2]
[369053674,1751446249027,-460.0,0.00016986,2]
[369053675,1751446249036,-1283.86,0.00016986,2]
[369053677,1751446249046,-460.0,0.00016986,2]
[369053679,1751446249056,-460.0,0.00016986,2]
[369053681,1751446249066,-460.0,0.00016986,2]
[369053683,1751446249075,-399.75849675,0.00016986,2]
[369053685,1751446249085,-460.0,0.00016986,2]
[369053687,1751446249094,-1651.96,0.00016986,2]
[369053689,1751446249104,-460.0,0.00016986,2]
[369053691,1751446249114,-3551.5,0.00016986,2]
[369053693,1751446249124,-460.0,0.00016986,2]
[369053695,1751446249133,-460.0,0.00016986,2]
[369053697,1751446249143,-460.0,0.00016986,2]
[369053699,1751446249153,-460.0,0.00016986,2]
[369053700,1751446249163,-715.93,0.00016986,2]
[369053701,1751446249172,-460.0,0.00016986,2]
[369053703,1751446249181,-605.18,0.00016986,2]
[369053705,1751446249191,-460.0,0.00016986,2]
[369053706,1751446249200,-460.0,0.00016986,2]
[369053707,1751446249209,-5373.03,0.00016986,2]
[369053708,1751446249218,-460.0,0.00016986,2]
[369053709,1751446249227,-1188.97,0.00016986,2]
[369053710,1751446249237,-3210.9,0.00016986,2]
[369053711,1751446249248,-855.64,0.00016986,2]
[369053712,1751446249258,-741.32,0.00016986,2]
[369053713,1751446249268,-460.0,0.00016986,2]
[369053714,1751446249277,-252.20367881,0.00016986,2]
[369053715,1751446249287,-1028.23,0.00016986,2]
[369053716,1751446249298,-520.1119055,0.00016986,2]
[369053718,1751446249308,-460.0,0.00016986,2]
[369053719,1751446249317,-460.0,0.00016986,2]
[369053721,1751446249327,-1054.53,0.00016986,2]
[369053722,1751446249337,-1640.39,0.00016986,2]
[369053723,1751446249346,-704.86,0.00016986,2]
[369053724,1751446249356,-460.0,0.00016986,2]
[369053725,1751446249365,-460.0,0.00016986,2]
[369053726,1751446249375,-460.0,0.00016986,2]
[369053727,1751446249385,-460.0,0.00016986,2]
[369053728,1751446249394,-460.0,0.00016986,2]
[369053729,1751446249405,-460.0,0.00016986,2]
[369053730,1751446249414,-230.16909466,0.00016986,2]
[369053731,1751446249423,-849.27,0.00016986,2]
[369053732,1751446249432,-519.86,0.00016986,2]
[369053733,1751446249441,-699.08,0.00016986,2]
[369053734,1751446249451,-1667.26,0.00016986,2]
[369053735,1751446249460,-460.0,0.00016986,2]
[369053736,1751446249469,-2824.0,0.00016986,2]
[369053737,1751446249477,-521.36,0.00016986,2]
[369053738,1751446249487,-460.0,0.00016986,2]
[369053739,1751446249497,-460.0,0.00016986,2]
[369053740,1751446249506,-398.47494724,0.00016986,2]
[369053741,1751446249516,-1066.36,0.00016986,2]
[369053742,1751446249525,-829.75,0.00016986,2]
[369053743,1751446249535,-460.0,0.00016986,2]
[369053744,1751446249544,-165.58508725,0.00016986,2]
[369053745,1751446249553,-460.0,0.00016986,2]
[369053746,1751446249563,-460.0,0.00016986,2]
[369053747,1751446249572,-499.94,0.00016986,2]
[369053748,1751446249582,-843.41,0.00016986,2]
[369053749,1751446249591,-442.09480305,0.00016986,2]
[369053750,1751446249600,-407.93992733,0.00016986,2]
[369053751,1751446249609,-460.0,0.00016986,2]
[369053752,1751446249619,-460.0,0.00016986,2]
[369053753,1751446249629,-460.0,0.00016986,2]
[369053754,1751446249638,-460.0,0.00016986,2]
[369053755,1751446249647,-513.23,0.00016986,2]
[369053756,1751446249657,-398.83399096,0.00016986,2]
[369053757,1751446249667,-460.0,0.00016986,2]
[369053758,1751446249676,-460.0,0.00016986,2]
[369053759,1751446249685,-1075.58,0.00016986,2]
[369053760,1751446249695,-2881.49,0.00016986,2]
[369053761,1751446249703,-460.0,0.00016986,2]
[369053762,1751446249713,-594.93,0.00016986,2]
[369053763,1751446249722,-889.55,0.00016986,2]
[369053764,1751446249731,-412.22587059,0.00016986,2]
[369053765,1751446249741,-460.0,0.00016986,2]
[369053766,1751446249753,-460.0,0.00016986,2]
[369053767,1751446249763,-460.0,0.00016986,2]
[369053768,1751446249771,-460.0,0.00016986,2]
[369053769,1751446249781,-460.0,0.00016986,2]
[369053770,1751446249790,-3374.99,0.00016986,2]
[369053771,1751446249799,-460.0,0.00016986,2]
[369053772,1751446249808,-634.33,0.00016986,2]
[369053773,1751446249817,-460.0,0.00016986,2]
[369053774,1751446249827,-1273.46,0.00016986,2]
[369053775,1751446249836,-460.0,0.00016986,2]
[369053776,1751446249845,-460.0,0.00016986,2]
[369053777,1751446249854,-460.0,0.00016986,2]
[369053778,1751446249863,-460.0,0.00016986,2]
[369053779,1751446249872,-460.0,0.00016986,2]
[369053780,1751446249881,-460.0,0.00016986,2]
[369053781,1751446249890,-844.65,0.00016986,2]
[369053782,1751446249900,-789.41,0.00016986,2]
[369053783,1751446249909,-460.0,0.00016986,2]
[369053784,1751446249918,-460.0,0.00016986,2]
[369053785,1751446249927,-477.12149144,0.00016986,2]
[369053786,1751446249937,-976.59,0.00016986,2]
[369053787,1751446249946,-460.0,0.00016986,2]
[369053788,1751446249955,-859.52,0.00016986,2]
[369053789,1751446249964,-2186.95,0.00016986,2]
[369053790,1751446249974,-510.53,0.00016986,2]
[369053791,1751446249982,-460.0,0.00016986,2]
[369053792,1751446249991,-460.0,0.00016986,2]
[369053793,1751446250000,-460.0,0.00016986,2]
[369053794,1751446250009,-878.11,0.00016986,2]
[369053795,1751446250019,-460.0,0.00016986,2]
[369053796,1751446250028,-6607.59,0.00016986,2]
[369053797,1751446250037,-460.0,0.00016986,2]
[369053798,1751446250046,-460.0,0.00016986,2]
[369053799,1751446250055,-820.75,0.00016986,2]
[369053800,1751446250064,-461.99929387,0.00016986,2]
[369053801,1751446250074,-821.71,0.00016986,2]
[369053802,1751446250083,-460.0,0.00016986,2]
[369053803,1751446250092,-460.0,0.00016986,2]
[369053804,1751446250101,-1821.34,0.00016986,2]
[369053805,1751446250110,-460.0,0.00016986,2]
[369053806,1751446250119,-460.0,0.00016986,2]
[369053807,1751446250128,-260.3,0.00016986,2]
[369053808,1751446250137,-460.0,0.00016986,2]
[369053809,1751446250147,-460.0,0.00016986,2]
[369053810,1751446250155,-460.0,0.00016986,2]
[369053811,1751446250164,-460.0,0.00016986,2]
[369053812,1751446250173,-460.0,0.00016986,2]
[369053813,1751446250182,-464.28,0.00016986,2]
[369053814,1751446250191,-460.0,0.00016986,2]
[369053815,1751446250200,-460.0,0.00016986,2]
[369053816,1751446250209,-460.0,0.00016986,2]
[369053817,1751446250219,-727.14,0.00016986,2]
[369053818,1751446250227,-2275.66,0.00016986,2]
[369053819,1751446250236,-460.0,0.00016986,2]
[369053820,1751446250246,-460.0,0.00016986,2]
[369053821,1751446250255,-538.53,0.00016986,2]
[369053822,1751446250263,-460.0,0.00016986,2]
[369053823,1751446250272,-460.0,0.00016986,2]
[369053824,1751446250282,-460.0,0.00016986,2]
[369053825,1751446250291,-460.0,0.00016986,2]
[369053826,1751446250301,-532.83,0.00016986,2]
[369053827,1751446250311,-4977.12,0.00016986,2]
[369053828,1751446250320,-968.78,0.00016986,2]
[369053829,1751446250329,-460.0,0.00016986,2]
[369053830,1751446250339,-736.48,0.00016986,2]
[369053831,1751446250348,-460.0,0.00016986,2]
[369053832,1751446250358,-833.75,0.00016986,2]
[369053833,1751446250367,-460.0,0.00016986,2]
[369053834,1751446250376,-500.0,0.00016986,2]
[369053835,1751446250386,-151.0,0.00017,2]
[369053836,1751446250395,-151.0,0.00017,2]
[369053837,1751446250405,-337.0,0.00017014,2]
[369053838,1751446250415,-1000.0,0.00017021,2]
[369053839,1751446250424,-1000.0,0.00017021,2]
[369053840,1751446250434,-1000.0,0.00017021,2]
[369053841,1751446250443,-2600.0,0.00017022,2]
[369053842,1751446250453,-151.0,0.000171,2]
[369053843,1751446250462,-151.0,0.000171,2]
[369053844,1751446250471,-2773.26161577,0.0001716,2]
[369053845,1751446250480,-163.0,0.00017178,3]
[369053846,1751446250490,-151.0,0.000172,2]
[369053847,1751446250500,-151.0,0.000172,2]
[369053848,1751446250509,-460.0,0.0001726,2]
[369053849,1751446250518,-460.0,0.0001726,2]
[369053850,1751446250527,-460.0,0.0001726,2]
[369053851,1751446250537,-151.0,0.0001726,2]
[369053852,1751446250546,-460.0,0.0001726,2]
[369053853,1751446250556,-472.74887339,0.0001726,2]
[369053854,1751446250567,-460.0,0.0001726,2]
[369053855,1751446250578,-460.0,0.0001726,2]
[369053856,1751446250587,-460.0,0.0001726,2]
[369053857,1751446250597,-460.0,0.0001726,2]
[369053858,1751446250606,-460.0,0.0001726,2]
[369053859,1751446250616,-460.0,0.0001726,2]
[369053860,1751446250626,-460.0,0.0001726,2]
[369053861,1751446250758,-460.0,0.0001726,2]
[369053862,1751446250768,-460.0,0.0001726,2]
[369053863,1751446250778,-460.0,0.0001726,2]
[369053864,1751446250787,-460.0,0.0001726,2]
[369053865,1751446250798,-460.0,0.0001726,2]
[369053866,1751446250807,-460.0,0.0001726,2]
[369053867,1751446250817,-460.0,0.0001726,2]
[369053868,1751446250827,-460.0,0.0001726,2]
[369053869,1751446250838,-460.0,0.0001726,2]
[369053870,1751446250847,-460.0,0.0001726,2]
[369053871,1751446250857,-460.0,0.0001726,2]
[369053872,1751446250867,-468.20923153,0.0001726,2]
[369053873,1751446250876,-567.8,0.0001726,2]
[369053874,1751446250886,-460.0,0.0001726,2]
[369053875,1751446250896,-460.0,0.0001726,2]
[369053876,1751446250905,-460.0,0.0001726,2]
[369053877,1751446250915,-460.0,0.0001726,2]
[369053878,1751446250925,-675.62,0.0001726,2]
[369053879,1751446250935,-460.0,0.0001726,2]
[369053880,1751446250944,-719.27,0.0001726,2]
[369053881,1751446250954,-479.3,0.0001726,2]
[369053882,1751446250963,-460.0,0.0001726,2]
[369053883,1751446250973,-460.0,0.0001726,2]
[369053884,1751446250983,-460.0,0.0001726,2]
[369053885,1751446250992,-460.0,0.0001726,2]
[369053886,1751446251002,-759.71,0.0001726,2]
[369053887,1751446251011,-460.0,0.0001726,2]
[369053888,1751446251020,-931.62,0.0001726,2]
[369053889,1751446251031,-460.0,0.0001726,2]
[369053890,1751446251041,-460.0,0.0001726,2]
[369053891,1751446251050,-460.0,0.0001726,2]
[369053892,1751446251059,-548.91516801,0.0001726,2]
[369053893,1751446251068,-460.0,0.0001726,2]
[369053894,1751446251078,-460.0,0.0001726,2]
[369053895,1751446251088,-617.48,0.0001726,2]
[369053896,1751446251098,-460.0,0.0001726,2]
[369053897,1751446251108,-460.0,0.0001726,2]
[369053898,1751446251117,-468.31,0.0001726,2]
[369053899,1751446251127,-460.0,0.0001726,2]
[369053900,1751446251137,-467.81463015,0.0001726,2]
[369053901,1751446251147,-460.0,0.0001726,2]
[369053902,1751446251157,-1058.65,0.0001726,2]
[369053903,1751446251166,-460.0,0.0001726,2]
[369053904,1751446251176,-460.0,0.0001726,2]
[369053905,1751446251185,-460.0,0.0001726,2]
[369053906,1751446251195,-460.0,0.0001726,2]
[369053907,1751446251205,-460.0,0.0001726,2]
[369053908,1751446251215,-460.0,0.0001726,2]
[369053909,1751446251224,-460.0,0.0001726,2]
[369053910,1751446251235,-1050.38,0.0001726,2]
[369053911,1751446251245,-460.0,0.0001726,2]
[369053912,1751446251255,-460.0,0.0001726,2]
[369053913,1751446251265,-460.0,0.0001726,2]
[369053914,1751446251274,-460.0,0.0001726,2]
[369053915,1751446251284,-460.0,0.0001726,2]
[369053916,1751446251294,-465.8413118,0.0001726,2]
[369053917,1751446251303,-460.0,0.0001726,2]
[369053918,1751446251312,-500.0,0.0001726,2]
[369053919,1751446251321,-460.0,0.0001726,2]
[369053920,1751446251331,-1020.41,0.0001726,2]
[369053921,1751446251341,-460.0,0.0001726,2]
[369053922,1751446251351,-460.0,0.0001726,2]
[369053923,1751446251361,-460.0,0.0001726,2]
[369053924,1751446251370,-936.85,0.0001726,2]
[369053925,1751446251379,-460.0,0.0001726,2]
[369053926,1751446251389,-460.0,0.0001726,2]
[369053927,1751446251398,-492.08,0.0001726,2]
[369053928,1751446251408,-460.0,0.0001726,2]
[369053929,1751446251417,-460.0,0.0001726,2]
[369053931,1751446251427,-460.0,0.0001726,2]
[369053933,1751446251437,-460.0,0.0001726,2]
[369053935,1751446251446,-460.0,0.0001726,2]
[369053937,1751446251456,-460.0,0.0001726,2]
[369053940,1751446251465,-713.77,0.0001726,2]
[369053942,1751446251475,-1984.15,0.0001726,2]
[369053944,1751446251484,-639.15,0.0001726,2]
[369053946,1751446251494,-464.87353107,0.0001726,2]
[369053948,1751446251504,-510.56,0.0001726,2]
[369053950,1751446251513,-1341.06,0.0001726,2]
[369053952,1751446251522,-1965.29,0.0001726,2]
[369053954,1751446251532,-1463.66,0.0001726,2]
[369053956,1751446251541,-440.0,0.0001726,2]
[369053958,1751446251551,-460.0,0.0001726,2]
[369053960,1751446251560,-588.79,0.0001726,2]
[369053962,1751446251569,-460.0,0.0001726,2]
[369053964,1751446251578,-705.4,0.0001726,2]
[369053966,1751446251588,-460.0,0.0001726,2]
[369053968,1751446251597,-1283.86,0.0001726,2]
[369053970,1751446251606,-460.0,0.0001726,2]
[369053972,1751446251615,-341.86462615,0.0001726,2]
[369053974,1751446251625,-460.0,0.0001726,2]
[369053975,1751446251634,-460.0,0.0001726,2]
[369053978,1751446251643,-1651.96,0.0001726,2]
[369053979,1751446251654,-460.0,0.0001726,2]
[369053981,1751446251663,-3551.5,0.0001726,2]
[369053984,1751446251673,-460.0,0.0001726,2]
[369053986,1751446251682,-460.0,0.0001726,2]
[369053987,1751446251691,-460.0,0.0001726,2]
[369053989,1751446251701,-460.0,0.0001726,2]
[369053991,1751446251710,-715.93,0.0001726,2]
[369053994,1751446251719,-460.0,0.0001726,2]
[369053995,1751446251728,-605.18,0.0001726,2]
[369053997,1751446251737,-460.0,0.0001726,2]
[369054000,1751446251747,-460.0,0.0001726,2]
[369054001,1751446251760,-5373.03,0.0001726,2]
[369054003,1751446251770,-460.0,0.0001726,2]
[369054005,1751446251779,-1188.97,0.0001726,2]
[369054007,1751446251788,-3210.9,0.0001726,2]
[369054010,1751446251798,-855.64,0.0001726,2]
[369054012,1751446251807,-741.32,0.0001726,2]
[369054014,1751446251816,-460.0,0.0001726,2]
[369054016,1751446251827,-1028.23,0.0001726,2]
[369054018,1751446251836,-586.51819159,0.0001726,2]
[369054020,1751446251845,-460.0,0.0001726,2]
[369054022,1751446251854,-1054.53,0.0001726,2]
[369054024,1751446251863,-704.86,0.0001726,2]
[369054026,1751446251872,-460.0,0.0001726,2]
[369054028,1751446251881,-1640.39,0.0001726,2]
[369054030,1751446251891,-460.0,0.0001726,2]
[369054032,1751446251902,-460.0,0.0001726,2]
[369054034,1751446251911,-460.0,0.0001726,2]
[369054036,1751446251921,-460.0,0.0001726,2]
[369054038,1751446251931,-460.0,0.0001726,2]
[369054040,1751446251940,-849.27,0.0001726,2]
[369054042,1751446251950,-519.86,0.0001726,2]
[369054044,1751446251959,-699.08,0.0001726,2]
[369054045,1751446251967,-1667.26,0.0001726,2]
[369054048,1751446251977,-460.0,0.0001726,2]
[369054050,1751446251986,-2824.0,0.0001726,2]
[369054052,1751446251995,-521.36,0.0001726,2]
[369054054,1751446252005,-460.0,0.0001726,2]
[369054056,1751446252014,-1066.36,0.0001726,2]
[369054058,1751446252023,-829.75,0.0001726,2]
[369054059,1751446252032,-460.0,0.0001726,2]
[369054061,1751446252041,-460.0,0.0001726,2]
[369054063,1751446252051,-460.0,0.0001726,2]
[369054065,1751446252060,-499.94,0.0001726,2]
[369054067,1751446252069,-843.41,0.0001726,2]
[369054069,1751446252078,-307.604169,0.0001726,2]
[369054071,1751446252088,-460.0,0.0001726,2]
[369054073,1751446252097,-460.0,0.0001726,2]
[369054075,1751446252106,-460.0,0.0001726,2]
[369054078,1751446252116,-513.23,0.0001726,2]
[369054080,1751446252125,-460.0,0.0001726,2]
[369054082,1751446252135,-1075.58,0.0001726,2]
[369054084,1751446252144,-460.0,0.0001726,2]
[369054086,1751446252154,-2881.49,0.0001726,2]
[369054087,1751446252162,-460.0,0.0001726,2]
[369054089,1751446252171,-889.55,0.0001726,2]
[369054092,1751446252181,-594.93,0.0001726,2]
[369054093,1751446252190,-460.0,0.0001726,2]
[369054096,1751446252199,-460.0,0.0001726,2]
[369054097,1751446252209,-460.0,0.0001726,2]
[369054100,1751446252218,-460.0,0.0001726,2]
[369054102,1751446252228,-3374.99,0.0001726,2]
[369054104,1751446252237,-460.0,0.0001726,2]
[369054106,1751446252247,-634.33,0.0001726,2]
[369054108,1751446252256,-434.43291053,0.0001726,2]
[369054110,1751446252266,-1273.46,0.0001726,2]
[369054112,1751446252275,-460.0,0.0001726,2]
[369054114,1751446252284,-460.0,0.0001726,2]
[369054116,1751446252294,-460.0,0.0001726,2]
[369054118,1751446252303,-460.0,0.0001726,2]
[369054120,1751446252312,-460.0,0.0001726,2]
[369054122,1751446252321,-460.0,0.0001726,2]
[369054124,1751446252331,-460.0,0.0001726,2]
[369054126,1751446252340,-844.65,0.0001726,2]
[369054128,1751446252349,-789.41,0.0001726,2]
[369054129,1751446252358,-460.0,0.0001726,2]
[369054132,1751446252368,-460.0,0.0001726,2]
[369054134,1751446252377,-976.59,0.0001726,2]
[369054135,1751446252386,-859.52,0.0001726,2]
[369054137,1751446252395,-2186.95,0.0001726,2]
[369054139,1751446252405,-510.53,0.0001726,2]
[369054141,1751446252414,-460.0,0.0001726,2]
[369054143,1751446252423,-460.0,0.0001726,2]
[369054145,1751446252433,-878.11,0.0001726,2]
[369054147,1751446252442,-460.0,0.0001726,2]
[369054149,1751446252451,-6607.59,0.0001726,2]
[369054151,1751446252461,-460.0,0.0001726,2]
[369054153,1751446252470,-460.0,0.0001726,2]
[369054155,1751446252479,-820.75,0.0001726,2]
[369054157,1751446252488,-821.71,0.0001726,2]
[369054159,1751446252498,-460.0,0.0001726,2]
[369054161,1751446252507,-460.0,0.0001726,2]
[369054163,1751446252516,-1821.34,0.0001726,2]
[369054165,1751446252526,-460.0,0.0001726,2]
[369054167,1751446252535,-460.0,0.0001726,2]
[369054169,1751446252544,-460.0,0.0001726,2]
[369054171,1751446252554,-404.15959912,0.0001726,2]
[369054173,1751446252563,-460.0,0.0001726,2]
[369054175,1751446252573,-460.0,0.0001726,2]
[369054177,1751446252582,-460.0,0.0001726,2]
[369054179,1751446252591,-460.0,0.0001726,2]
[369054181,1751446252600,-460.0,0.0001726,2]
[369054183,1751446252610,-460.0,0.0001726,2]
[369054186,1751446252620,-464.28,0.0001726,2]
[369054188,1751446252630,-727.14,0.0001726,2]
[369054189,1751446252640,-2275.66,0.0001726,2]
[369054191,1751446252650,-460.0,0.0001726,2]
[369054193,1751446252660,-460.0,0.0001726,2]
[369054196,1751446252671,-538.53,0.0001726,2]
[369054197,1751446252680,-460.0,0.0001726,2]
[369054200,1751446252689,-460.0,0.0001726,2]
[369054202,1751446252699,-460.0,0.0001726,2]
[369054204,1751446252708,-460.0,0.0001726,2]
[369054206,1751446252717,-532.83,0.0001726,2]
[369054208,1751446252726,-4977.12,0.0001726,2]
[369054210,1751446252735,-968.78,0.0001726,2]
[369054212,1751446252745,-460.0,0.0001726,2]
[369054214,1751446252757,-460.0,0.0001726,2]
[369054216,1751446252766,-736.48,0.0001726,2]
[369054218,1751446252776,-833.75,0.0001726,2]
[369054220,1751446252786,-500.85804323,0.00017273,2]
[369054222,1751446252795,-616.9064965,0.00017273,2]
[369054224,1751446252805,-502.02241972,0.00017273,2]
[369054226,1751446252814,-500.97518452,0.00017273,2]
[369054228,1751446252823,-502.13141308,0.00017273,2]
[369054230,1751446252833,-519.67404451,0.00017273,2]
[369054232,1751446252844,-501.05354607,0.00017273,2]
[369054234,1751446252853,-500.0,0.00017273,2]
[369054236,1751446252862,-500.50665393,0.00017273,2]
[369054238,1751446252873,-500.52665875,0.00017273,2]
[369054240,1751446252883,-500.90126161,0.00017273,2]
[369054242,1751446252892,-501.07624275,0.00017273,2]
[369054244,1751446252902,-606.97192203,0.00017273,2]
[369054246,1751446252911,-500.42573378,0.00017273,2]
[369054248,1751446252921,-418.09660904,0.00017273,2]
[369054250,1751446252931,-501.37111765,0.00017273,2]
[369054252,1751446252940,-501.280806,0.00017273,2]
[369054253,1751446252950,-500.28227314,0.00017273,2]
[369054255,1751446252959,-522.02008631,0.00017273,2]
[369054257,1751446252969,-501.04916773,0.00017273,2]
[369054259,1751446252978,-151.0,0.000173,2]
[369054261,1751446252987,-500.0,0.00017368,2]
[369054263,1751446252996,-151.0,0.000174,2]
[369054265,1751446253006,-160.0,0.00017409,2]
[369054267,1751446253015,-847.65867985,0.00017409,2]
[369054269,1751446253024,-215.04179405,0.00017409,2]
[369054271,1751446253034,-213.90888375,0.00017409,2]
[369054273,1751446253043,-230.34465076,0.00017409,2]
[369054275,1751446253052,-837.27862799,0.00017409,2]
[369054277,1751446253061,-12573.65100011,0.00017409,2]
[369054278,1751446253071,-160.0,0.00017409,2]
[369054279,1751446253081,-151.0,0.000175,2]
[369054280,1751446253090,-157.409072,0.000175,2]
[369054281,1751446253099,-157.409072,0.000175,2]
[369054282,1751446253109,-460.0,0.00017506,2]
[369054284,1751446253118,-1000.0,0.00017521,2]
[369054286,1751446253128,-5000.0,0.00017524,2]
[369054288,1751446253137,-465.6141806,0.00017534,2]
[369054290,1751446253147,-460.0,0.00017534,2]
[369054292,1751446253157,-460.0,0.00017534,2]
[369054294,1751446253166,-460.0,0.00017534,2]
[369054296,1751446253175,-460.0,0.00017534,2]
[369054298,1751446253184,-460.0,0.00017534,2]
[369054300,1751446253193,-460.0,0.00017534,2]
[369054302,1751446253203,-460.0,0.00017534,2]
[369054304,1751446253212,-460.0,0.00017534,2]
[369054306,1751446253221,-460.0,0.00017534,2]
[369054307,1751446253230,-391.41712358,0.00017534,2]
[369054310,1751446253240,-460.0,0.00017534,2]
[369054312,1751446253249,-460.0,0.00017534,2]
[369054313,1751446253259,-328.53652074,0.00017534,2]
[369054315,1751446253268,-460.0,0.00017534,2]
[369054317,1751446253277,-460.0,0.00017534,2]
[369054319,1751446253287,-460.0,0.00017534,2]
[369054334,1751446253416,-460.0,0.00017534,2]
[369054336,1751446253426,-460.0,0.00017534,2]
[369054339,1751446253437,-460.0,0.00017534,2]
[369054341,1751446253446,-567.8,0.00017534,2]
[369054342,1751446253455,-460.0,0.00017534,2]
[369054344,1751446253465,-460.0,0.00017534,2]
[369054346,1751446253474,-460.0,0.00017534,2]
[369054348,1751446253485,-475.63543935,0.00017534,2]
[369054350,1751446253495,-675.62,0.00017534,2]
[369054352,1751446253504,-460.0,0.00017534,2]
[369054354,1751446253513,-719.27,0.00017534,2]
[369054356,1751446253522,-479.3,0.00017534,2]
[369054357,1751446253531,-460.0,0.00017534,2]
[369054358,1751446253540,-460.0,0.00017534,2]
[369054360,1751446253550,-532.14,0.00017534,2]
[369054362,1751446253559,-460.0,0.00017534,2]
[369054364,1751446253568,-759.71,0.00017534,2]